Cogmind - Beta 17.1 @@@ ROGUE MODE // 2026.09.08 @ 23:36:50 Player: TheSkyeDoctor Result: Destroyed by G-50 Soldier with Heavy Laser Performance ------------- Evolutions (4) 2000 Regions Visited (8) 1600 Robots Destroyed (45) 225 Value Destroyed (1603) 1603 Prototype IDs (23) 460 Alien Tech Used (0) 0 Bonus (1156) 1156 TOTAL SCORE: 7044 Bonus ------- Follower Combat Kills 56 Registered with UFD 300 Met Optimus in HQ 500 Met Imprinter 300 Cogmind --------- Core Integrity 0/850 Matter 294/300 Energy 23/100 System Corruption 12% Temperature Cool (9) Movement Core (50) Location -5/Proximity Caves Parts ------- > --- POWER (1) -------- (None) > --- PROPULSION (4) --- (None) > --- UTILITY (8) ------ Advanced Signal Interpreter Improved Terrain Scan Processor 0b10 Decoder Chip [Scout] > --- WEAPON (2) ------- Makeshift Spear > --- INVENTORY (5) ---- Light Treads Large Matter Pod (150) Rocket Launcher RU-N14's Throwing Claymores (4) Phasing Sabre Peak State ------------ > --- POWER ------------ Fission Core > --- PROPULSION ------- Light Treads Armored Treads Spiked Medium Treads Spiked Medium Treads > --- UTILITY ---------- Large Storage Unit Advanced Signal Interpreter Improved Terrain Scanner Improved Terrain Scan Processor 0b10 Decoder Chip [Scout] 0b10 Decoder Chip [Scout] Makeshift ECM Suite Improved Medium Armor Plating > --- WEAPON ----------- Heavy Plasma Cannon RU-N14's Throwing Claymores > --- INVENTORY -------- Improved Deuterium Engine Scrap Suit Large Matter Pod Improved Light Armor Plating Dynamic Insulation System High-powered Tractor Beam Rocket Launcher Enhanced Flamer RU-N14's Throwing Claymores RU-N14's Throwing Claymores RU-N14's Throwing Claymores Phasing Sabre Makeshift Spear [Rating: 65] Favorites ----------- Power Heavy Ion Engine Engine Heavy Ion Engine Power Core Fission Core Propulsion Aluminum Leg Treads Spiked Medium Treads Leg Aluminum Leg Utility Large Storage Unit Device Improved Terrain Scanner Storage Large Storage Unit Processor 0b10 Decoder Chip [Generic] Protection Improved Light Armor Plating Weapon Battle Cannon Energy Gun Medium Laser Energy Cannon Heavy Plasma Cannon Ballistic Gun Assault Rifle Ballistic Cannon Battle Cannon Launcher Subdweller Shrapnel Launcher Special Weapon Enhanced Flamer Piercing Weapon Makeshift Spear Build | -11 -10 -10 -8 -6 -6 -6 -6 -5 ------- Run | Yrd Mat Sub Scr Fac Low Low Zio Pro Slots Evolved 8 | . . . . 8 . . . . Power . | . . . . . . . . . Propulsion 2 | . . . . 2 . . . . Utility 6 | . . . . 6 . . . . Weapon . | . . . . . . . . . Parts Attached 58 | 7 1 9 5 5 16 2 3 10 Power 6 | 1 1 1 . . 2 . . 1 Engine 5 | 1 1 1 . . 1 . . 1 Core 1 | . . . . . 1 . . . Reactor . | . . . . . . . . . Propulsion 9 | 2 . 1 1 . 3 1 . 1 Treads 5 | . . . . . 3 1 . 1 Leg 4 | 2 . 1 1 . . . . . Wheel . | . . . . . . . . . Hover . | . . . . . . . . . Flight . | . . . . . . . . . Utility 27 | 2 . 4 3 3 8 1 3 3 Device 11 | 1 . 1 1 3 2 . . 3 Storage 2 | 1 . . 1 . . . . . Processor 9 | . . . 1 . 6 . 2 . Hackware . | . . . . . . . . . Protection 5 | . . 3 . . . 1 1 . Artifact . | . . . . . . . . . Weapon 16 | 2 . 3 1 2 3 . . 5 Energy Gun 1 | 1 . . . . . . . . Energy Cannon 2 | . . . 1 . 1 . . . Ballistic Gun 1 | 1 . . . . . . . . Ballistic Cannon 2 | . . 2 . . . . . . Launcher 3 | . . 1 . 2 . . . . Special Weapon 6 | . . . . . 1 . . 5 Impact Weapon . | . . . . . . . . . Slashing Weapon . | . . . . . . . . . Piercing Weapon 1 | . . . . . 1 . . . Special Melee Weapon . | . . . . . . . . . Unidentified Prototypes 2 | . 1 . . . . . . 1 Parts Lost 31 | . . 3 . 6 7 . . 15 Power 2 | . . . . . . . . 2 Propulsion 7 | . . 1 . 2 . . . 4 Utility 15 | . . 2 . 2 5 . . 6 Weapon 7 | . . . . 2 2 . . 3 Highest Loss Streak 14 | . . 1 . 6 3 . . 14 To Critical Strikes 1 | . . . . . . . . 1 Average Backups 8 | . 3 5 9 6 7 9 13 13 Power 1 | . 1 . 1 1 1 2 1 . Propulsion . | . . . . . . 1 . . Utility 3 | . 1 2 4 3 3 3 4 4 Weapon 3 | . . 2 3 2 2 3 6 7 Tool/Special . | . . . . . . . . . Unused Backups 16 | . 1 1 . . 4 . 3 7 Power 4 | . 1 1 . . 1 . . 1 Propulsion 3 | . . . . . 1 . 1 1 Utility 3 | . . . . . 1 . . 2 Weapon 6 | . . . . . 1 . 2 3 Tool/Special . | . . . . . . . . . Average Slot Usage (%) 80 | . 100 79 95 53 33 98 100 97 Engine 6 | . 14 13 12 3 . . . . Core 2 | . . . . . 1 6 6 5 Treads 8 | . . . . . 5 25 26 25 Leg 12 | . 28 20 28 7 . . . . Device 7 | . 14 . 8 18 1 13 13 12 Storage 9 | . 14 10 14 6 6 6 6 6 Processor 11 | . . . 5 6 14 26 26 25 Protection 3 | . . 7 . 3 . 5 6 6 Energy Cannon 4 | . . . 11 3 . 6 6 5 Ballistic Gun 2 | . 14 10 . . . . . . Ballistic Cannon 6 | . . 11 12 3 . . . . Piercing Weapon 1 | . . . . . 1 6 6 . Peak Build Rating 65 | 7 10 38 25 44 55 60 63 65 Average Rating 32 | 5 8 24 16 34 22 59 61 60 On Entrance 28 | . 7 10 10 25 24 55 60 63 Avg Prop Armor Cover (%) 6 | . . . . . . . . 6 Naked Turns . | . . . . . . . . . Heaviest Build 82 | 15 18 82 39 58 51 54 58 58 Greatest Support 99 | 20 20 20 20 20 76 96 96 99 Greatest Overweight (x) 9 | 1 . 4 1 8 9 . . . Average Overweight (x) . | . . . . 4 3 . . . Largest Inventory Capacity 15 | 8 8 8 15 15 15 15 15 15 Average Capacity 12 | 7 8 7 12 15 15 15 15 14 Most Carried 15 | 2 7 8 15 13 12 11 15 15 Average Carried 9 | . 3 5 10 8 9 10 14 14 Final Capacity 15 | 8 8 8 15 15 15 15 15 5 Final Carried 15 | 2 7 8 15 8 9 11 15 5 Scrap Suit Usage (%) 3 | . . . . 93 . . . 1 Parts Cannibalized 1 | . . . . 1 . . . . Class Distribution -------------------- 52% | Mutant 35% | Derelict-Mutant 12% | Tank Dominant Class ---------------- Mutant | -10/Materials Tank | -10/Subcaves Mutant | -8/Scraptown Mutant | -6/Factory Mutant | -6/Lower Caves Derelict-Mutant | -6/Lower Caves Derelict-Mutant | -6/Zion Derelict-Mutant | -5/Proximity Caves Resources | -11 -10 -10 -8 -6 -6 -6 -6 -5 ----------- Run | Yrd Mat Sub Scr Fac Low Low Zio Pro Matter Collected 1801 | 299 . 552 81 26 690 40 9 104 Remotely 20 | . . . . . . . . 20 Salvage Created 1163 | 108 . 249 . 76 46 75 . 609 Parts 69 | 10 . 23 . . 5 4 . 27 Haulers Intercepted . | . . . . . . . . . Recyclers Shooed . | . . . . . . . . . Parts Field Recycled . | . . . . . . . . . Retrieved Matter . | . . . . . . . . . Parts Self-Destructed 42 | . . 11 . . 8 5 . 18 Prevented 4 | . . . . . 1 2 . 1 Parts Restored . | . . . . . . . . . Kills | -11 -10 -10 -8 -6 -6 -6 -6 -5 ------- Run | Yrd Mat Sub Scr Fac Low Low Zio Pro Combat Hostiles Destroyed 38 | . . 10 . 3 5 1 . 19 Melee 1 | . . . . . . . . 1 Guns 3 | . . 3 . . . . . . Cannons 15 | . . 6 . . . 1 . 8 AOE 14 | . . 1 . 3 5 . . 5 Classes Destroyed 14 | 2 . 3 . 3 1 1 . 4 Tunneler 3 | 3 . . . . . . . . Recycler 1 | 1 . . . . . . . . Drone 2 | . . . . . . . . 2 Turret 2 | . . 2 . . . . . . Watcher 1 | . . . . 1 . . . . Swarmer 14 | . . 3 . . 4 . . 7 Grunt 5 | . . . . 2 . . . 3 Brawler 3 | . . . . . . . . 3 Duelist 1 | . . . . 1 . . . . Protector 1 | . . . . . . . . 1 Sentry 3 | . . . . . . 1 . 2 Programmer 1 | . . . . . 1 . . . Behemoth 1 | . . . . . . . . 1 Subdweller 7 | . . 7 . . . . . . Best Kill Streak 6 | 4 . 5 . 3 4 1 . 6 Combat Bots Only 6 | . . 3 . 3 4 1 . 6 Max Kills in Single Turn 3 | 1 . 2 . 1 2 1 . 3 Gunslinging . | . . . . . . . . . Exploded 3 | . . 1 . 1 2 . . 3 Melee 1 | . . . . . . . . 1 Uniques/NPCs Destroyed . | . . . . . . . . . Combat | -11 -10 -10 -8 -6 -6 -6 -6 -5 -------- Run | Yrd Mat Sub Scr Fac Low Low Zio Pro Hostile Shots Fired 362 | . . 83 . 56 46 3 . 174 Missed 108 | . . 34 . 12 13 . . 49 Hits 254 | . . 49 . 44 33 3 . 125 Melee 28 | . . . . 11 . . . 17 Projectile 226 | . . 49 . 33 33 3 . 108 AOE 1 | . . 1 . . . . . . Critical Strikes 18 | . . 2 . 7 2 . . 7 Part Disruptions 2 | . . . . 1 . . . 1 Damage Taken 5722 | . . 842 . 1308 990 35 . 2547 Core 949 | . . 83 . 265 225 11 . 365 Absorbed by Shields 16 | . . . . 16 . . . . Regen/Repaired (Parts) 936 | . . . . 8 . . 928 . Core Remaining (%) 83 | 100 . . 66 . . . . . Volleys Fired 124 | 11 1 43 . 13 17 2 . 37 Largest 4 | 2 2 4 . 2 1 1 . 2 Hottest 170 | 70 70 126 . 96 80 90 . 170 Shots Fired 227 | 22 2 107 . 19 17 2 . 58 Gun 86 | 22 2 62 . . . . . . Cannon 80 | . . 39 . 14 . 2 . 25 Launcher 20 | . . 6 . 5 9 . . . Special 41 | . . . . . 8 . . 33 Kinetic 114 | 11 1 88 . 10 4 . . . Thermal 92 | 11 1 19 . . 8 2 . 51 Explosive 15 | . . . . 3 5 . . 7 Electromagnetic 6 | . . . . 6 . . . . Robot Hit Streak 17 | 9 3 17 . 9 12 2 . 13 Robot Miss Streak 4 | 3 1 3 . 3 1 . . 4 Penetration Max . | . . . . . . . . . Secondary Targets . | . . . . . . . . . Shots Hit Robots 151 | 14 1 67 . 14 14 2 . 39 Core Hits 82 | 5 1 22 . 10 11 2 . 31 Critical Kills 1 | . . . . . . . . 1 Critical Parts Destroyed . | . . . . . . . . . Critical Strikes 8 | . . 2 . 1 . . . 5 Burn 4 | . . 1 . . . . . 3 Meltdown 1 | . . . . . . . . 1 Destroy 1 | . . 1 . . . . . . Blast 1 | . . . . 1 . . . . Sever 1 | . . . . . . . . 1 Melee Attacks 7 | . . . . . 5 . . 2 Impact . | . . . . . . . . . Slashing . | . . . . . . . . . Piercing 7 | . . . . . 5 . . 2 Sneak Attacks 1 | . . . . . . . . 1 Combat Hostiles 1 | . . . . . . . . 1 Follow-up Attacks . | . . . . . . . . . Damage Inflicted 5428 | 172 12 1261 . 711 666 71 . 2535 Guns 707 | 170 12 525 . . . . . . Cannons 1186 | . . 414 . 225 . 71 . 476 Explosions 2966 | . . 322 . 486 583 . . 1575 Melee 68 | . . . . . . . . 68 Ramming 2 | 2 . . . . . . . . Kinetic 1824 | 70 . 1076 . 286 392 . . . Thermal 1117 | 100 12 185 . . 83 71 . 666 Explosive 2098 | . . . . 332 191 . . 1575 Electromagnetic 93 | . . . . 93 . . . . Impact . | . . . . . . . . . Slashing 226 | . . . . . . . . 226 Piercing 68 | . . . . . . . . 68 Highest Corruption 12 | . . . . 1 3 3 3 12 Average Corruption 2 | . . . . 1 2 3 3 6 Corruption Purged . | . . . . . . . . . Corruption Blocked . | . . . . . . . . . Effects 38 | . . . . . 27 7 1 3 Message Errors 12 | . . . . . 9 2 . 1 Matter Fused 5 | . . . . . 4 1 . . Heat Flow Errors 6 | . . . . . 4 1 . 1 Energy Discharges 5 | . . . . . 3 1 . 1 Data Loss (minor) 5 | . . . . . 4 1 . . Data Loss (major) 4 | . . . . . 3 . 1 . Alerts 1 | . . . . . . 1 . . Overload Shots . | . . . . . . . . . Overflow Damage 172 | . . . . 72 74 . . 26 Projectiles 20 | . . . . 6 . . . 14 Explosions 152 | . . . . 66 74 . . 12 Melee . | . . . . . . . . . Knockbacks 11 | . . 9 . 2 . . . . Impact . | . . . . . . . . . Kinetic 11 | . . 9 . 2 . . . . Secondary . | . . . . . . . . . Self-Inflicted Damage 645 | . . 40 . 391 214 . . . Shots 12 | . . 1 . 7 4 . . . Rammed . | . . . . . . . . . Targets Rammed 1 | 1 . . . . . . . . Kicked 1 | 1 . . . . . . . . Crushed . | . . . . . . . . . Highest Temperature 476 | 36 9 174 . 33 226 163 . 476 Average Temperature 124 | 16 6 45 . 19 78 74 . 181 Received Heat Transfer 1224 | . . 216 . 153 96 18 . 741 Effects 13 | . . . . . . . . 13 Shutdowns 3 | . . . . . . . . 3 Energy Bleed 2 | . . . . . . . . 2 Interference 1 | . . . . . . . . 1 Short Circuit 1 | . . . . . . . . 1 Damage (minor) 2 | . . . . . . . . 2 Damage (major) 4 | . . . . . . . . 4 Siege Activations . | . . . . . . . . . Martial Activations . | . . . . . . . . . Shielding Activations . | . . . . . . . . . Robots Disrupted . | . . . . . . . . . Combat Hostiles . | . . . . . . . . . Robots Corrupted . | . . . . . . . . . Combat Hostiles . | . . . . . . . . . Parts Fried . | . . . . . . . . . Impact Corruptions . | . . . . . . . . . Robots Melted 5 | . . . . . . . . 5 Combat Hostiles 5 | . . . . . . . . 5 Parts Melted 9 | 1 . 2 . . . . . 6 Heat Transferred 4162 | 296 37 629 . . 560 100 . 2540 Parts Sabotaged . | . . . . . . . . . Parts Stolen . | . . . . . . . . . Parts Stripped . | . . . . . . . . . Power Chain Reactions . | . . . . . . . . . Alert | -11 -10 -10 -8 -6 -6 -6 -6 -5 ------- Run | Yrd Mat Sub Scr Fac Low Low Zio Pro Maximum Alert Level . | . . . . . . . . . Low Security (%) 100 | 100 100 . . 100 . . . . Level 1 . | . . . . . . . . . Level 2 . | . . . . . . . . . Level 3 . | . . . . . . . . . Level 4 . | . . . . . . . . . Level 5 . | . . . . . . . . . High Security . | . . . . . . . . . Max Security . | . . . . . . . . . Peak Influence 122 | 5 . . . 122 . . . . Initial . | . . . . . . . . . Average 21 | 1 . . . 38 . . . . Influence Increases 909 | 20 . 130 . 169 153 22 . 415 Destroy 0b10 Robot/C 620 | . . 100 . 60 120 20 . 320 Destroy 0b10 Robot/NC 40 | 20 . . . 5 . . . 15 Destroy Leader 62 | . . . . 12 30 . . 20 Allied During Kill 5 | . . . . . 3 2 . . Disable Machine 45 | . . . . 45 . . . . Destroy Structure 47 | . . . . 47 . . . . Lose Combat Pursuer 90 | . . 30 . . . . . 60 Influence Decreases 833 | 20 . 130 . 127 195 22 . 339 Entered New Map 16 | . . . . . 16 . . . Time Decay 582 | 20 . 120 . 97 139 22 . 184 Lost Part 215 | . . 10 . 30 40 . . 135 Lost Ally 20 | . . . . . . . . 20 Squads Dispatched 2 | . . . . 1 . . . 1 Investigation . | . . . . . . . . . Extermination 1 | . . . . 1 . . . . Reinforcement . | . . . . . . . . . Assault 1 | . . . . . . . . 1 Garrison . | . . . . . . . . . Intercept . | . . . . . . . . . Searches Triggered . | . . . . . . . . . Construction Impeded . | . . . . . . . . . Haulers Reinforced . | . . . . . . . . . Active Scanning Responses . | . . . . . . . . . Cargo Convoy Interrupts . | . . . . . . . . . Stealth | -11 -10 -10 -8 -6 -6 -6 -6 -5 --------- Run | Yrd Mat Sub Scr Fac Low Low Zio Pro Distress Signals 2 | . 1 . . . . . . 1 Communications Jammed . | . . . . . . . . . Distress Signals . | . . . . . . . . . Times Spotted 68 | . 2 15 . 7 6 4 . 34 Peak Tracking Total 10 | . 3 5 . 4 4 3 . 10 Tactical Retreats 9 | . . 1 . . . 1 . 7 ECM-based Alert Blocks 11 | . . . . . . 2 . 9 Traps | -11 -10 -10 -8 -6 -6 -6 -6 -5 ------- Run | Yrd Mat Sub Scr Fac Low Low Zio Pro Traps Triggered . | . . . . . . . . . Indirectly . | . . . . . . . . . Trap Hack Attempts . | . . . . . . . . . Triggered . | . . . . . . . . . Disarmed . | . . . . . . . . . Reprogrammed . | . . . . . . . . . Reused . | . . . . . . . . . Traps Extracted . | . . . . . . . . . Installed . | . . . . . . . . . Triggered . | . . . . . . . . . Machines | -11 -10 -10 -8 -6 -6 -6 -6 -5 ---------- Run | Yrd Mat Sub Scr Fac Low Low Zio Pro Machines Disabled 9 | . . 5 . 3 . . . 1 Max in Single Turn 3 | . . 3 . 2 . . . 1 Machines Repaired . | . . . . . . . . . Machines Dismantled . | . . . . . . . . . Machines Sabotaged . | . . . . . . . . . Overloaded Fab Kills . | . . . . . . . . . Hacking | -11 -10 -10 -8 -6 -6 -6 -6 -5 --------- Run | Yrd Mat Sub Scr Fac Low Low Zio Pro Machines Accessed 8 | . 1 2 4 . 1 . . . Terminals 1 | . 1 . . . . . . . Fabricators . | . . . . . . . . . Repair Stations . | . . . . . . . . . Recycling Units . | . . . . . . . . . Scanalyzers . | . . . . . . . . . Garrison Access . | . . . . . . . . . Total Hacks 35 | . 2 2 30 . 1 . . . Successful 34 | . 1 2 30 . 1 . . . Failed 1 | . 1 . . . . . . . Catastrophic . | . . . . . . . . . Database Lockouts . | . . . . . . . . . Manual 2 | . 2 . . . . . . . Terminals 2 | . 2 . . . . . . . Fabricators . | . . . . . . . . . Repair Stations . | . . . . . . . . . Recycling Units . | . . . . . . . . . Scanalyzers . | . . . . . . . . . Garrison Access . | . . . . . . . . . Terminal Hacks 33 | . . 2 30 . 1 . . . Record 25 | . . . 25 . . . . . Robot Analysis 5 | . . . 5 . . . . . Open Door 2 | . . 1 . . 1 . . . Proto ID Catalog 1 | . . 1 . . . . . . Fabricator Hacks . | . . . . . . . . . Repair Station Hacks . | . . . . . . . . . Recycling Unit Hacks . | . . . . . . . . . Scanalyzer . | . . . . . . . . . Garrison Access Hacks . | . . . . . . . . . Unauthorized Hacks 1 | . 1 . . . . . . . Terminals 1 | . 1 . . . . . . . Botnet 1 | . 1 . . . . . . . Fabricators . | . . . . . . . . . Repair Stations . | . . . . . . . . . Recycling Units . | . . . . . . . . . Scanalyzers . | . . . . . . . . . Garrison Access . | . . . . . . . . . Data Cores Recovered . | . . . . . . . . . Used . | . . . . . . . . . Hacking Detections . | . . . . . . . . . Full Trace Events . | . . . . . . . . . Feedback Events . | . . . . . . . . . Feedback Blocked . | . . . . . . . . . Robot Schematics Acquired . | . . . . . . . . . Robots Built . | . . . . . . . . . Authchips . | . . . . . . . . . Time . | . . . . . . . . . Total Robot Build Rating . | . . . . . . . . . Part Schematics Acquired . | . . . . . . . . . Parts Built . | . . . . . . . . . Authchips . | . . . . . . . . . Time . | . . . . . . . . . Total Part Build Rating . | . . . . . . . . . Part Studies Acquired . | . . . . . . . . . Parts Repaired . | . . . . . . . . . Time . | . . . . . . . . . Parts Recycled . | . . . . . . . . . Recycled Matter . | . . . . . . . . . Retrieved Matter . | . . . . . . . . . Retrieved Components . | . . . . . . . . . Parts Scanalyzed . | . . . . . . . . . Part Schematics Acquired . | . . . . . . . . . Parts Damaged . | . . . . . . . . . Bothacking | -11 -10 -10 -8 -6 -6 -6 -6 -5 ------------ Run | Yrd Mat Sub Scr Fac Low Low Zio Pro Used RIF Installer . | . . . . . . . . . Robots Hacked . | . . . . . . . . . Non-combat . | . . . . . . . . . Combat . | . . . . . . . . . Robot Hacks Applied . | . . . . . . . . . Relay Couplers Released . | . . . . . . . . . Fabnet Peak Effective % . | . . . . . . . . . Robots Rewired . | . . . . . . . . . Allies Hacked . | . . . . . . . . . Hacks Repelled . | . . . . . . . . . Allies | -11 -10 -10 -8 -6 -6 -6 -6 -5 -------- Run | Yrd Mat Sub Scr Fac Low Low Zio Pro Total Allies 1 | . . . . . 1 . . . Largest Group 1 | . . . . . 1 1 1 1 Highest-Rated Group 44 | . . . . . 44 44 44 44 Highest-Rated Ally 44 | . . . . . 44 44 44 44 Initial UFD Resources 26 | . . . . 22 22 22 22 26 Total Orders . | . . . . . . . . . Ally Attacks 18 | . . . . . 11 3 . 4 Total Damage 232 | . . . . . 145 61 . 26 Kills 1 | . . . . . 1 . . . Allies Corrupted . | . . . . . . . . . Allies Melted . | . . . . . . . . . Intel | -11 -10 -10 -8 -6 -6 -6 -6 -5 ------- Run | Yrd Mat Sub Scr Fac Low Low Zio Pro Active Infowar (turns) 5011 | 22 158 134 . 278 1308 404 1605 1102 Optics 103 | . . 103 . . . . . . Terrain 3600 | . . . . . 517 404 1605 1074 Structural 279 | . . . . 278 1 . . . Seismic 211 | 22 158 31 . . . . . . Decoding 4416 | . . . . . 1307 404 1603 1102 ECM 3035 | . . . . . 84 404 1605 942 Robot Analysis Total 5 | . . . 5 . . . . . Derelict Logs Recovered 5 | . . . 1 . 2 1 1 . Drone Launches . | . . . . . . . . . Drone Recoveries . | . . . . . . . . . Exploration | -11 -10 -10 -8 -6 -6 -6 -6 -5 ------------- Run | Yrd Mat Sub Scr Fac Low Low Zio Pro Turns Passed 10847 | 131 158 2434 2759 362 1892 404 1605 1102 Spaces Moved 5429 | 75 122 1222 1554 97 648 232 949 530 Core 412 | 8 . . . 36 365 . . 3 Treads 1991 | . . . . . 283 232 949 527 Legs 3026 | 67 122 1222 1554 61 . . . . Wheels . | . . . . . . . . . Hover . | . . . . . . . . . Flight . | . . . . . . . . . Fastest Speed 50 | 50 120 120 120 260 160 162 162 50 Average Speed 185 | 113 120 186 176 322 272 162 162 161 Slowest Speed 500 | 120 120 400 190 450 500 163 162 163 Overloaded Moves . | . . . . . . . . . Propulsion Burnouts . | . . . . . . . . . Robots Hopped . | . . . . . . . . . Potential Cave-ins . | . . . . . . . . . Cave-ins Triggered . | . . . . . . . . . Exploration Rate (%) 47 | 5 25 49 81 3 76 39 84 61 Regions Visited 8 Branch Regions 6 Pre-discovered Areas 7 | . . . 5 . 1 . 1 . Known Exits Taken 5 | . . . 1 1 1 1 1 . Unknown Exits Taken 3 | 1 1 1 . . . . . . Scrap Searched 21 | . . 2 5 . 4 4 3 3 Spaces Dug . | . . . . . . . . . Terrain Destroyed 281 | . . 73 . 69 83 . . 56 Melee . | . . . . . . . . . Projectile 9 | . . . . . . . . 9 AOE 272 | . . 73 . 69 83 . . 47 Terrain Rammed . | . . . . . . . . . Walls Destroyed . | . . . . . . . . . Machines Disabled . | . . . . . . . . . Actions | -11 -10 -10 -8 -6 -6 -6 -6 -5 --------- Run | Yrd Mat Sub Scr Fac Low Low Zio Pro Total 5938 | 95 132 1289 1575 130 745 257 1018 697 Wait 217 | . . 1 . 6 26 20 53 111 Move 5421 | 74 121 1221 1553 96 647 231 948 530 Hop . | . . . . . . . . . Pick Up 50 | 2 6 8 7 . 17 2 8 . Fast Attach 35 | 7 1 7 4 3 9 2 2 . Attach 32 | . . 3 1 9 10 . . 9 Detach 12 | . 1 1 . 3 3 . 2 2 Swap 10 | . . 1 3 . 2 . 1 3 Drop 29 | . 2 4 7 . 9 . 4 3 Fire 124 | 11 1 43 . 13 17 2 . 37 Melee 7 | . . . . . 5 . . 2 Ram . | . . . . . . . . . Kick 1 | 1 . . . . . . . . Crush . | . . . . . . . . . Escape Stasis . | . . . . . . . . . Rewire . | . . . . . . . . . Trap . | . . . . . . . . . Miscellaneous . | . . . . . . . . . Route ------- -11/Scrapyard -10/Materials (discovered 2 exits: [*Mat] / *Sub) -10/Subcaves (discovered 2 exits: [*Rec] / *Scr) -8/Scraptown (discovered 2 exits: *Fac x2) -6/Factory (discovered 5 exits: Fac x3 / *Low x2) -6/Lower Caves -6/Lower Caves (discovered 2 exits: Fac / *Zio) -6/Zion (discovered 2 exits: Dee / *Pro) -5/Proximity Caves (discovered 1 exit: Fac) History --------- Turn | Location | Event 16 | -11/Scrapyard | Discovered new exit (range 15) 132 | -11/Scrapyard | Entered Materials 133 | -10/Materials | Met a group of wandering Federalists 191 | -10/Materials | Discovered new exit (range 16) 281 | -10/Materials | Discovered new exit (range 8) 290 | -10/Materials | Entered Subcaves 291 | -10/Subcaves | Continued accompanying wandering Federalists (6) 291 | -10/Subcaves | Approached by a straggling Scientist 313 | -10/Subcaves | Build established: Mutant 388 | -10/Subcaves | Shifting Twisted Machinery released Shrapnel Trap 423 | -10/Subcaves | Lost 4 allies 674 | -10/Subcaves | Visited 4L-MR0's lab 693 | -10/Subcaves | Found Tower Shield 712 | -10/Subcaves | Attached Tower Shield, gained temporary slots: Power, Propulsion x2, Utility x2, Weapon x2 994 | -10/Subcaves | Build established: Tank 1266 | -10/Subcaves | Shifting Twisted Machinery released Sub. Monowheel 1476 | -10/Subcaves | A swath of the cavern ceiling suddenly collapsed 1805 | -10/Subcaves | Discovered new exit (range 14) 1840 | -10/Subcaves | Shifting Twisted Machinery released Mak. Power Source 2099 | -10/Subcaves | Shifting Twisted Machinery released Sub. Machine Gun 2310 | -10/Subcaves | Build established: Mutant 2724 | -10/Subcaves | Entered Scraptown 3212 | -8/Scraptown | Heard Great Nut preacher, LISTEN AND RECITE! 3223 | -8/Scraptown | Discovered new exit (range 13) 3415 | -8/Scraptown | Visited Cave Peace 3442 | -8/Scraptown | Visited TADAMA 3472 | -8/Scraptown | Visited Fellowship of the Rings 3510 | -8/Scraptown | Visited Science Testing Area 3546 | -8/Scraptown | Visited SPCMW 3605 | -8/Scraptown | Visited Comm Corps 3620 | -8/Scraptown | Visited Spacefarers 3681 | -8/Scraptown | Visited UFD Registry 3681 | -8/Scraptown | Registered with UFD as "Gaussdriver" 3719 | -8/Scraptown | Visited Botcube Research 4197 | -8/Scraptown | Scanned Subdweller tech in exchange for log data 4202 | -8/Scraptown | Learned Research interactive machine intel 4375 | -8/Scraptown | Found Botcube 4410 | -8/Scraptown | Visited Abandonware Association 4443 | -8/Scraptown | Visited A0-MCA Data Center 4456 | -8/Scraptown | Given a B- rating by A0-MCA 4462 | -8/Scraptown | Found A0-MCA's Component Scanner 4502 | -8/Scraptown | Visited Analyses Database 4586 | -8/Scraptown | Visited Scrapoid Pod Storage 4612 | -8/Scraptown | Visited Derelict Rescue Squad 4631 | -8/Scraptown | Visited Modified Component R&D 4688 | -8/Scraptown | Visited Supply Room 4750 | -8/Scraptown | Visited Scrap Suit Storage 4763 | -8/Scraptown | Found Scrap Suit 4767 | -8/Scraptown | Found Scrap Suit 4810 | -8/Scraptown | Visited Cartography Club 5079 | -8/Scraptown | Learned location of Storage (-8) 5079 | -8/Scraptown | Learned location of Recycling (-8) 5079 | -8/Scraptown | Learned location of Upper Caves (-4) 5079 | -8/Scraptown | Learned location of Armory (-4) 5079 | -8/Scraptown | Learned location of Quarantine (-2) 5079 | -8/Scraptown | Learned 12 Factory zone layouts 5079 | -8/Scraptown | Learned 16 Factory zone layouts 5079 | -8/Scraptown | Learned 20 Factory zone layouts 5079 | -8/Scraptown | Learned 16 Research zone layouts 5079 | -8/Scraptown | Learned 4 Storage zone layouts 5079 | -8/Scraptown | Learned 8 Lower Caves zone layouts 5079 | -8/Scraptown | Learned 8 Proximity Caves zone layouts 5079 | -8/Scraptown | Learned 12 Proximity Caves zone layouts 5079 | -8/Scraptown | Learned 4 Hub_04(d) zone layouts 5079 | -8/Scraptown | Learned location of 1 exit from Factory 5079 | -8/Scraptown | Learned location of 2 exits from Lower Caves 5079 | -8/Scraptown | Learned location of 1 exit from Upper Caves 5079 | -8/Scraptown | Identified exit to Factory 5205 | -8/Scraptown | Found Deep Structural Scanner 5374 | -8/Scraptown | Met Optimus 5374 | -8/Scraptown | Accepted into 0bPrime 5483 | -8/Scraptown | Entered Factory 5483 | -6/Factory | Evolved 8 slots: Propulsion x2, Utility x6 5484 | -6/Factory | Identified exit to Factory 5486 | -6/Factory | Identified exit to Lower Caves 5716 | -6/Factory | Lost 6 parts (2n2u2w) 5845 | -6/Factory | Entered Lower Caves 5846 | -6/Lower Caves | Identified exit to Lower Caves 5879 | -6/Lower Caves | Lost 3 parts (3u) 5953 | -6/Lower Caves | Core integrity fell below 50% 6221 | -6/Lower Caves | Encountered a Warlord checkpoint 6921 | -6/Lower Caves | Spotted B-75 Beast 7165 | -6/Lower Caves | Found DCF Scrap (16 items) 7285 | -6/Lower Caves | Build established: Derelict-Mutant 7338 | -6/Lower Caves | Botcube activated 7350 | -6/Lower Caves | Botcube completed mutation into hovering form, armed with 2 guns 7433 | -6/Lower Caves | Allies destroyed B-75 Beast 7455 | -6/Lower Caves | Lost 3 parts (2u1w) 7737 | -6/Lower Caves | Entered another Lower Caves area 7737 | -6/Lower Caves | Accompanied by 1 ally 7738 | -6/Lower Caves | Encountered a Warlord checkpoint 7738 | -6/Lower Caves | Identified exit to Zion 7754 | -6/Lower Caves | Attracted the attention of an 0b10 checkpoint 7801 | -6/Lower Caves | Discovered exit to Factory (range 13) 7829 | -6/Lower Caves | Learned Factory terminal intel 8141 | -6/Lower Caves | Entered Zion 8141 | -6/Zion | Accompanied by 1 ally 8192 | -6/Zion | System corruption cleaned by Quarantine Array 8303 | -6/Zion | Discovered new exit (range 16) 8942 | -6/Zion | Identified exit to Deep Caves 9104 | -6/Zion | Turned away by Imprinter 9177 | -6/Zion | Found Prototype Special Weapon 9179 | -6/Zion | Found Prototype Special Weapon 9182 | -6/Zion | Found Prototype Special Weapon 9192 | -6/Zion | Found Prototype Special Weapon 9547 | -6/Zion | Visited the Megawrench Repair Shop 9548 | -6/Zion | Megawrench repaired 12 parts 9743 | -6/Zion | Identified exit to Proximity Caves 9746 | -6/Zion | Entered Proximity Caves 9746 | -5/Proximity Caves | Accompanied by 1 ally 9749 | -5/Proximity Caves | Spotter reported a threat 10072 | -5/Proximity Caves | Spotter reported a threat 10185 | -5/Proximity Caves | Spotter reported a threat 10302 | -5/Proximity Caves | Spotter reported a threat 10381 | -5/Proximity Caves | Spotted B-75 Beast 10386 | -5/Proximity Caves | Identified RU-N14's Throwing Claymores (x4) 10393 | -5/Proximity Caves | Destroyed B-75 Beast 10664 | -5/Proximity Caves | Attracted the attention of an 0b10 checkpoint 10771 | -5/Proximity Caves | Attracted the attention of an 0b10 outpost 10841 | -5/Proximity Caves | Core integrity fell below 20% 10843 | -5/Proximity Caves | System corruption reached 10% 10848 | -5/Proximity Caves | Destroyed by G-50 Soldier with Heavy Laser Last Messages --------------- 10837_ Spk. Medium Treads destroyed. 10838_ RU-N14's Throwing Claymores expended. 10838_ Machine disabled. 10840_ Spk. Medium Treads destroyed. 10840_ Critical hit (Burn: +37). 10841_ I-47 Archangel destroyed. 10841_ G-50 Soldier destroyed. 10842_ The unstable cave ceiling collapses. 10842_ Mak. ECM Suite destroyed. 10842_ System corrupted by crushing effect (+4). 10843_ RU-N14's Throwing Claymores expended. 10843_ B-60 Warrior destroyed. 10843_ G-50 Soldier destroyed. 10844_ System corrupted: Energy discharge (-10). 10846_ Dropped Mak. Spear. 10846_ Imp. Deuterium Engine destroyed. 10846_ Dropped Lrg. Storage Unit. 10847_ Scrap Suit secures Mak. Spear. 10847_ Discarded Scrap Suit. 10847_ Acquired 4 matter. Map ----- +----------------------------------------------------+ | ### #?????????????????????????????????????????? | | ##????????????????????????????????????????? | | #????????????????????????????????????????? | | # # #####????????????????????????????????????????? | | # ###????????????????????????????????????????????? | | #??????????#?#??????#???#??????????????????????? | | # #????######????##?##??#?#??????????????????????? | | # #??#?## ##?#####?#????#??###??????????????#### | | # ###### ### ####??#??## ####???????????# | | # #### ####?##?# #?###?????????## | | #??## #####??# ##???#??####### | | ## %#?### ######## ###?#??# | | #### %###?# ##?##?# "" # | | #### ###### $ #???### """" # | | #?# ###?# #### #?##?## "" ## | | #?# ###### #?# ###?#?## "" ## | | ##?# ######## ?## ##???#?# """" # | | ###?# ###?#?## ##?#####????## """" | | ###### ######## ###?????????## """" # | | #### # ##### ######??### ## | | ##### % ##?##?## #? | | #???## b%##! ###?## ######### | | ###### ###"##; ! ### #?#### ##?????# | | #### ##??#### ### ### ##??????# # | | # # ##?##### ##### #???????# # | | # ######### @ #?#### #####???# # | | # ## #?## ##?### ##### # | | # ### ###?# ## g ##### # | | # #### ##### # % ###### | | # #### ##### # g ##????? | | # #### ###### #g #### #####?????? | | # #### ###?##?# #g ### ###?###?????? | | #### ######## #" ## #??## ##????? | | # #""""# ## #### #??### | | # ####### ## ## ##??# | | ######## ## ## ###???# | | ####### ## #### ## #????## | | ## #### ## ###?## | | ### #### ## #?# # | | %######### ####### ### | | #######?# ### | | #??###### | | #####?####### ### ## #### | | ###########################?# #### ### ##??## | | #########?##?###?#??????????###??####?####????#### | | ###?####?####??###???????????????????????????????? | | ##########?#####?#???????????????????????????????? | | ###?####?######?#????????????????????????????????? | | #############?##?#???????????????????????????????? | | ###??############????????????????????????????????? | +----------------------------------------------------+ Best States ------------- Heat Dissipation 59 Energy Generation 23 Energy Capacity 460 Matter Stores 300 Matter Capacity 300 Sight Range 21 Terrain Scan Range 16 Terrain Scan Density 110 ECM Strength 2 EM Shielding 2 Armor Coverage 2225 Evasion (%) 55 Recoil Reduction 4 Item Schematics ----------------- None Robot Schematics ------------------ None Fabricated ------------ Nothing Repaired ---------- Nothing Studied --------- None Alien Tech Used ----------------- None Achievements -------------- None Challenges ------------ None Game ------ Seed LinkedResetTracker Manual? 0 Play Time 00:46:50 Cumulative 203.6 hours Start 2026.09.08 @ 22:44:51 End 2026.09.08 @ 23:36:50 Sessions 1 Manual Loads 0 Difficulty Rogue Special Mode None Game No. 397 Rogue 397 Adventurer 0 Explorer 0 Win Type - Total 2 Types 2/0/0/0/0/0/0/0/0/0 Lore% 61 Gallery% 62 Achievement% 48 Wizard Run 0 Options --------- Layout 2 ASCII 0 Keyboard 1 Movement Arrows Keybinds 0 Fullscreen 1 Font 24/Smallcaps Map View 50x44 Zoom Use 0% Tactical HUD 1 Map Filters NONE Filters NONE Steam 1 RUN: 80cb9abb-0e79-4193-b8c9-7fb4b393091c